[Event "Turkish Super League 2019"]
[Site "Konya"]
[Date "2019.07.23"]
[Round "7"]
[White "Dordzhieva, Dinara"]
[Black "Caglar, Sila"]
[Result "1-0"]
[ECO "A11"]
[WhiteElo "2306"]
[BlackElo "2306"]
[Annotator "NA"]
[PlyCount "73"]
[EventDate "2019.07.17"]
[EventType "team-tourn"]
[EventCountry "TUR"]
[SourceTitle "playchess.com"]
[Source "ChessBase"]
[SourceQuality "1"]
[TimeControl "40/5400+30:1800+30"]

1. Nf3 d5 2. c4 c6 3. g3 Bg4 4. Bg2 e6 5. cxd5 cxd5 6. Qa4+ Qd7 7. Qxg4 Nf6 8. Qd4 Nc6 9. Qa4 a6 10. O-O b5 11. Qb3 h5 12. h4 e5 13. d3 Bc5 14. Nc3 b4 15. Na4 Ba7 16. e4 Rb8 17. exd5 Na5 18. Qd1 Ng4 19. b3 O-O 20. Bb2 f6 21. d4 e4 22. Nh2 f5 23. Nxg4 hxg4 24. Nc5 Qxd5 25. Nxa6 {[%emt 0:40:30]} Rb6 {[%emt 0:58:30]} 26. Nc5 {[%emt 0:00:30]} Rd8 {[%emt 0:00:30]} 27. Qe2 {[%emt 0:00:30]} Rbd6 {[%emt 0:11:30]} 28. Rac1 {[%emt 0:02:30]} Bb6 {[%emt 0:17:51]} 29. Qb5 {[%emt 0:05:30]} Nc6 {[%emt 0:05:47]} 30. Rfd1 {[%emt 0:01:30]} Ba7 {[%emt 0:04:55]} 31. Qc4 {[%emt 0:02:30]} Qxc4 {[%emt 0:02:26]} 32. Rxc4 {[%emt 0:00:30]} Ne5 {[%emt 0:02:13]} 33. Rcc1 {[%emt 0:00:00]} Rd5 {[%emt 0:02:01]} 34. Ne6 {[%emt 0:02:00]} Nd3 {[%emt 0:00:41]} 35. Nxd8 {[%emt 0:00:30]} Nxb2 {[%emt 0:00:35]} 36. Nc6 {[%emt 0:00:30]} Nxd1 {[%emt 0:00:30]} 37. Ne7+ {[%emt 0:00:30]} 1-0

[Event "Turkish Super League 2019"]
[Site "Konya"]
[Date "2019.07.23"]
[Round "7"]
[White "Injac, Teodora"]
[Black "Buksa, Nataliya"]
[Result "0-1"]
[ECO "D37"]
[WhiteElo "2305"]
[BlackElo "2379"]
[Annotator "NA"]
[PlyCount "128"]
[EventDate "2019.07.17"]
[EventType "team-tourn"]
[EventCountry "TUR"]
[SourceTitle "playchess.com"]
[Source "ChessBase"]
[SourceQuality "1"]
[TimeControl "40/5400+30:1800+30"]

1. d4 Nf6 2. c4 e6 3. Nf3 d5 4. Nc3 Nbd7 5. Bf4 dxc4 6. e3 b5 7. Nxb5 Bb4+ 8. Nc3 Nd5 9. a3 Nxc3 10. Qd2 Nd5 11. axb4 Nxf4 12. exf4 Nb6 13. Be2 O-O 14. Ne5 Bb7 15. O-O Qd6 16. Rfc1 Rfd8 17. Nxc4 Nxc4 18. Rxc4 Ba6 19. Rcc1 Bxe2 20. Qxe2 Qxf4 21. Qe3 Qxd4 22. Qxd4 Rxd4 23. Rxc7 g6 24. Rb7 Rad8 25. g3 Rd1+ 26. Rxd1 Rxd1+ 27. Kg2 Rd4 28. Kf3 Rd3+ 29. Kg2 Rb3 30. Rxa7 Rxb4 31. Ra2 Rb3 32. Kf1 g5 33. h3 Kg7 34. Kg2 h5 35. Kh2 f5 36. Kg2 Kf6 37. Kh2 f4 38. g4 {[%emt 1:45:21]} h4 {[%emt 1:29:11]} 39. Kg2 {[%emt 0:00:30]} Kg6 {[%emt 0:00:30]} 40. Ra6 {[%emt 0:00:30]} Kf7 {[%emt 0:00:00]} 41. Ra2 {[%emt 0:02:09]} Kf6 {[%emt 0:05:49]} 42. Kh2 {[%emt 0:09:30]} Rd3 {[%emt 0:06:30]} 43. Kg2 {[%emt 0:03:30]} f3+ {[%emt 0:14:30]} 44. Kg1 {[%emt 0:00:30]} Rd1+ {[%emt 0:00:30]} 45. Kh2 {[%emt 0:00:30]} e5 {[%emt 0:03:30]} 46. Ra6+ {[%emt 0:07:31]} Kf7 {[%emt 0:00:30]} 47. b4 {[%emt 0:11:19]} e4 {[%emt 0:02:34]} 48. Ra7+ {[%emt 0:01:24]} Ke6 {[%emt 0:00:26]} 49. Ra6+ {[%emt 0:00:09]} Ke5 {[%emt 0:06:14]} 50. Ra5+ {[%emt 0:00:06]} Kd4 {[%emt 0:00:00]} 51. Ra8 {[%emt 0:01:47]} Rb1 {[%emt 0:02:07]} 52. Rd8+ {[%emt 0:00:34]} Kc4 {[%emt 0:00:08]} 53. Rc8+ {[%emt 0:00:59]} Kd3 {[%emt 0:00:12]} 54. Rd8+ {[%emt 0:00:00]} Ke2 {[%emt 0:00:29]} 55. Re8 {[%emt 0:00:40]} Rxb4 {[%emt 0:01:42]} 56. Kg1 {[%emt 0:00:02]} Rb1+ {[%emt 0:07:44]} 57. Kh2 {[%emt 0:00:30]} Kxf2 {[%emt 0:00:00]} 58. Rxe4 {[%emt 0:00:01]} Kf1 {[%emt 0:00:00]} 59. Ra4 {[%emt 0:01:19]} Rb2+ {[%emt 0:00:49]} 60. Kh1 {[%emt 0:00:02]} Kf2 {[%emt 0:01:58]} 61. Kh2 {[%emt 0:00:42]} Ke3+ {[%emt 0:00:22]} 62. Kg1 {[%emt 0:01:20]} Rb1+ {[%emt 0:00:30]} 63. Kh2 {[%emt 0:00:00]} f2 {[%emt 0:00:00]} 64. Ra3+ {[%emt 0:00:03]} Kd4 {[%emt 0:00:04]} 0-1

[Event "Turkish Super League 2019"]
[Site "Konya"]
[Date "2019.07.23"]
[Round "7"]
[White "Sevgi, Volkan"]
[Black "Ayan, Bengu Sena"]
[Result "1-0"]
[ECO "C04"]
[WhiteElo "2302"]
[BlackElo "1885"]
[Annotator "NA"]
[PlyCount "73"]
[EventDate "2019.07.17"]
[EventType "team-tourn"]
[EventCountry "TUR"]
[SourceTitle "playchess.com"]
[Source "ChessBase"]
[SourceQuality "1"]
[TimeControl "40/5400+30:1800+30"]

1. e4 e6 2. d4 d5 3. Nd2 Nc6 4. Ngf3 Nf6 5. e5 Nd7 6. Nb3 a5 7. a4 Be7 8. Bb5 Na7 9. Be2 b6 10. h4 h6 11. h5 c5 12. c3 Nc6 13. Rh3 Bb7 14. Rg3 Bf8 15. c4 dxc4 16. Bxc4 Nb4 17. Be3 Qc7 {[%emt 0:45:30]} 18. Rc1 {[%emt 0:54:00]} Rd8 {[%emt 0:09:30]} 19. Qe2 {[%emt 0:01:30]} Rc8 {[%emt 0:02:30]} 20. dxc5 {[%emt 0:03:30]} bxc5 {[%emt 0:03:30]} 21. Bb5 {[%emt 0:01:30]} Qb6 {[%emt 0:05:30]} 22. Nfd2 {[%emt 0:03:30]} Bc6 {[%emt 0:08:30]} 23. Nc4 {[%emt 0:00:30]} Qc7 {[%emt 0:00:30]} 24. Nbxa5 {[%emt 0:07:30]} Bxb5 {[%emt 0:03:30]} 25. axb5 {[%emt 0:02:30]} Ra8 {[%emt 0:01:30]} 26. Nb3 {[%emt 0:08:43]} Nxe5 {[%emt 0:07:15]} 27. Bxc5 {[%emt 0:00:00]} Ned3+ {[%emt 0:03:29]} 28. Rxd3 {[%emt 0:00:47]} Nxd3+ {[%emt 0:00:30]} 29. Qxd3 {[%emt 0:00:00]} Bxc5 {[%emt 0:00:00]} 30. Nxc5 {[%emt 0:00:00]} O-O {[%emt 0:00:41]} 31. Qd6 {[%emt 0:00:30]} Rfc8 {[%emt 0:02:24]} 32. Qxc7 {[%emt 0:00:30]} Rxc7 {[%emt 0:00:02]} 33. b4 {[%emt 0:00:00]} Kf8 {[%emt 0:01:12]} 34. b6 {[%emt 0:01:00]} Re7 {[%emt 0:00:45]} 35. b7 {[%emt 0:00:30]} Rb8 {[%emt 0:00:09]} 36. Nd6 {[%emt 0:00:30]} Rc7 {[%emt 0:00:17]} 37. Nxe6+ {[%emt 0:01:30]} 1-0

[Event "Turkish Super League 2019"]
[Site "Konya"]
[Date "2019.07.23"]
[Round "7"]
[White "Yildiz Kadioglu, Betul Cemre"]
[Black "Maltsevskaya, Aleksandra"]
[Result "1/2-1/2"]
[ECO "D02"]
[WhiteElo "2290"]
[BlackElo "2294"]
[Annotator "NA"]
[PlyCount "82"]
[EventDate "2019.07.17"]
[EventType "team-tourn"]
[EventCountry "TUR"]
[SourceTitle "playchess.com"]
[Source "ChessBase"]
[SourceQuality "1"]
[TimeControl "40/5400+30:1800+30"]

1. Nf3 Nf6 2. d4 d5 3. g3 g6 4. Bg2 Bg7 5. O-O O-O 6. Nbd2 c5 7. dxc5 Nbd7 8. Nb3 e5 9. Bg5 Qc7 10. Ne1 h6 11. Bxf6 Nxf6 12. Qd2 Be6 13. Qa5 b6 14. cxb6 axb6 15. Qb4 Rfc8 16. a4 Bf8 17. Qd2 Ne4 18. Qd3 f5 19. c3 Ra7 20. Nd2 Rca8 21. Qc2 b5 22. Nxe4 dxe4 23. f3 exf3 24. Nxf3 Rxa4 25. Rxa4 Rxa4 26. Nh4 Rxh4 27. gxh4 e4 28. Qd2 {[%emt 1:35:31]} Qe5 {[%emt 1:38:47]} 29. Qd8 {[%emt 0:00:30]} Kg7 {[%emt 0:00:30]} 30. Rd1 {[%emt 0:01:09]} f4 {[%emt 0:04:14]} 31. Kh1 {[%emt 0:03:13]} Bc5 {[%emt 0:00:53]} 32. b4 {[%emt 0:02:11]} Bf8 {[%emt 0:00:51]} 33. Qd4 {[%emt 0:00:17]} Qxd4 {[%emt 0:00:43]} 34. Rxd4 {[%emt 0:00:07]} Bc4 {[%emt 0:00:30]} 35. Rxe4 {[%emt 0:01:35]} Bd6 {[%emt 0:00:04]} 36. e3 {[%emt 0:02:13]} f3 {[%emt 0:00:29]} 37. Bh3 {[%emt 0:01:09]} f2 {[%emt 0:00:47]} 38. Rxc4 {[%emt 0:00:53]} bxc4 {[%emt 0:00:00]} 39. Bf1 {[%emt 0:00:00]} Bxb4 {[%emt 0:00:20]} 40. Kg2 {[%emt 0:00:00]} Bxc3 {[%emt 0:00:00]} 41. Kxf2 {[%emt 0:01:42]} Be5 {[%emt 0:00:22]} 1/2-1/2

[Event "Turkish Super League 2019"]
[Site "Konya"]
[Date "2019.07.23"]
[Round "7"]
[White "Dogan, Nazmi Can"]
[Black "Demircioglu, Emre"]
[Result "1-0"]
[ECO "D02"]
[WhiteElo "2276"]
[BlackElo "2242"]
[Annotator "NA"]
[PlyCount "67"]
[EventDate "2019.07.17"]
[EventType "team-tourn"]
[EventCountry "TUR"]
[SourceTitle "playchess.com"]
[Source "ChessBase"]
[SourceQuality "1"]
[TimeControl "40/5400+30:1800+30"]

1. d4 Nf6 2. Bf4 d5 3. e3 e6 4. Nd2 c5 5. c3 Nc6 6. Ngf3 cxd4 7. cxd4 Bd6 8. Bxd6 Qxd6 9. Bd3 O-O 10. O-O Bd7 11. a3 Rac8 12. Rc1 Rc7 13. Rc3 Rfc8 14. Qb1 Ne7 15. Rxc7 Rxc7 16. Ne5 Ba4 17. Ndf3 h6 18. g4 Ne4 19. b3 Be8 20. Bxe4 dxe4 21. Qxe4 Qxa3 22. g5 Bb5 23. gxh6 gxh6 24. Nxf7 {[%emt 1:33:33]} Rc1 {[%emt 1:41:12]} 25. Nxh6+ {[%emt 0:00:30]} Kf8 {[%emt 0:00:24]} 26. Rxc1 {[%emt 0:04:34]} Qxc1+ {[%emt 0:00:30]} 27. Kg2 {[%emt 0:00:30]} Bf1+ {[%emt 0:00:30]} 28. Kg3 {[%emt 0:00:30]} Qc7+ {[%emt 0:00:30]} 29. Ne5 {[%emt 0:00:45]} Nd5 {[%emt 0:00:22]} 30. Nhf7 {[%emt 0:00:43]} Nc3 {[%emt 0:00:37]} 31. Qh7 {[%emt 0:00:29]} Ne2+ {[%emt 0:01:14]} 32. Kg4 {[%emt 0:00:05]} Nxd4 {[%emt 0:00:00]} 33. Ng6+ {[%emt 0:00:56]} Ke8 {[%emt 0:00:21]} 34. Qh8+ {[%emt 0:00:43]} 1-0

[Event "Turkish Super League 2019"]
[Site "Konya"]
[Date "2019.07.23"]
[Round "7"]
[White "Yaran, Siar"]
[Black "Arat, Ufuk Sezen"]
[Result "0-1"]
[ECO "B06"]
[WhiteElo "2197"]
[BlackElo "2376"]
[Annotator "NA"]
[PlyCount "68"]
[EventDate "2019.07.17"]
[EventType "team-tourn"]
[EventCountry "TUR"]
[SourceTitle "playchess.com"]
[Source "ChessBase"]
[SourceQuality "1"]
[TimeControl "40/5400+30:1800+30"]

1. e4 g6 2. d4 d6 3. Nc3 Bg7 4. f4 c6 5. Be3 b5 6. a3 Nf6 7. Be2 Qa5 8. Bf3 O-O 9. g4 b4 10. axb4 Qxb4 11. Ra3 Ba6 12. Qa1 Qb7 13. h4 Qc8 14. g5 Ng4 15. Bxg4 Qxg4 16. Rxa6 Nxa6 17. Qxa6 Qg3+ 18. Bf2 Qxf4 19. Nge2 Qf3 20. Rg1 Rab8 21. Qa2 Kh8 22. h5 Qxh5 23. Kd2 f6 24. Be3 fxg5 25. Rxg5 Qh4 {[%emt 1:35:45]} 26. Rg3 {[%emt 1:37:13]} Bh6 {[%emt 0:00:30]} 27. b3 {[%emt 0:00:30]} Rf2 {[%emt 0:00:30]} 28. Qxa7 {[%emt 0:00:30]} Rbf8 {[%emt 0:00:30]} 29. Bxh6 {[%emt 0:00:30]} Qxh6+ {[%emt 0:00:30]} 30. Kd3 {[%emt 0:01:21]} d5 {[%emt 0:01:24]} 31. exd5 {[%emt 0:00:30]} cxd5 {[%emt 0:00:30]} 32. Re3 {[%emt 0:00:30]} e6 {[%emt 0:00:30]} 33. Qe7 {[%emt 0:00:03]} R2f6 {[%emt 0:01:53]} 34. Rxe6 {[%emt 0:01:07]} Rxe6 {[%emt 0:00:14]} 0-1

[Event "Turkish Super League 2019"]
[Site "Konya"]
[Date "2019.07.23"]
[Round "7"]
[White "Ozkan, Ervin"]
[Black "Keler, Faruk"]
[Result "1/2-1/2"]
[ECO "D02"]
[WhiteElo "2175"]
[BlackElo "2263"]
[Annotator "NA"]
[PlyCount "34"]
[EventDate "2019.07.17"]
[EventType "team-tourn"]
[EventCountry "TUR"]
[SourceTitle "playchess.com"]
[Source "ChessBase"]
[SourceQuality "1"]
[TimeControl "40/5400+30:1800+30"]

1. d4 Nf6 2. Nf3 d5 3. Bf4 c5 4. e3 Nc6 5. c3 Qb6 6. Qb3 c4 7. Qc2 Bf5 8. Qc1 e6 9. Nbd2 h6 10. Be2 Be7 11. b3 cxb3 12. axb3 Rc8 13. Qb2 Nh5 {[%emt 0:19:30]} 14. Be5 {[%emt 0:19:00]} Nf6 {[%emt 0:03:30]} 15. Bf4 {[%emt 0:00:30]} Nh5 {[%emt 0:01:30]} 16. Be5 {[%emt 0:00:00]} Nf6 {[%emt 0:00:30]} 17. Bf4 {[%emt 0:00:00]} Nh5 {[%emt 0:01:30]} 1/2-1/2

[Event "Turkish Super League 2019"]
[Site "Konya"]
[Date "2019.07.23"]
[Round "7"]
[White "Cansun, Can Alp"]
[Black "Kilic, Efe Mert"]
[Result "0-1"]
[ECO "B04"]
[WhiteElo "2121"]
[BlackElo "2275"]
[Annotator "NA"]
[PlyCount "126"]
[EventDate "2019.07.17"]
[EventType "team-tourn"]
[EventCountry "TUR"]
[SourceTitle "playchess.com"]
[Source "ChessBase"]
[SourceQuality "1"]
[TimeControl "40/5400+30:1800+30"]

1. e4 Nf6 2. e5 Nd5 3. c4 Nb6 4. d4 d6 5. exd6 cxd6 6. Nc3 g6 7. Be3 Bg7 8. h3 O-O 9. Nf3 Nc6 10. Rc1 e5 11. dxe5 dxe5 12. Qxd8 Rxd8 13. c5 Nd7 14. Bc4 h6 15. O-O Nf8 16. Nb5 Be6 17. Nd6 Rd7 18. g4 Bxc4 19. Rxc4 Ne6 20. b4 Ncd4 21. Bxd4 exd4 22. Re1 a5 23. Ne5 Bxe5 24. Rxe5 axb4 25. Rxb4 Nxc5 26. Rxd4 Ne6 27. Rd2 Rad8 28. Red5 Nf4 29. R5d4 Nxh3+ 30. Kg2 Ng5 31. Nb5 Rxd4 32. Rxd4 Rxd4 33. Nxd4 Ne6 34. Nb5 Kf8 35. Kf3 Ke7 36. Ke4 Nc5+ {[%emt 1:31:39]} 37. Kd4 {[%emt 1:42:31]} Nd7 {[%emt 0:00:30]} 38. Ke4 {[%emt 0:00:30]} Nf6+ {[%emt 0:00:30]} 39. Kf4 {[%emt 0:00:30]} Ke6 {[%emt 0:01:34]} 40. Nd4+ {[%emt 0:00:00]} Kd5 {[%emt 0:00:00]} 41. Nb3 {[%emt 0:06:59]} Ne4 {[%emt 0:05:17]} 42. Ke3 {[%emt 0:00:00]} Nc3 {[%emt 0:00:30]} 43. Nc1 {[%emt 0:01:00]} Kc4 {[%emt 0:03:30]} 44. f3 {[%emt 0:00:30]} b5 {[%emt 0:01:30]} 45. Nd3 {[%emt 0:04:30]} Nxa2 {[%emt 0:01:30]} 46. Ne5+ {[%emt 0:00:00]} Kc3 {[%emt 0:00:30]} 47. Nxf7 {[%emt 0:00:00]} b4 {[%emt 0:00:00]} 48. Nd6 {[%emt 0:01:30]} b3 {[%emt 0:02:00]} 49. Ne4+ {[%emt 0:00:30]} Kc2 {[%emt 0:03:30]} 50. Nd2 {[%emt 0:02:30]} Nc3 {[%emt 0:05:30]} 51. Nc4 {[%emt 0:07:29]} Nb5 {[%emt 0:01:30]} 52. f4 {[%emt 0:01:02]} Kc3 {[%emt 0:00:30]} 53. Nd2 {[%emt 0:00:07]} b2 {[%emt 0:00:30]} 54. Ne4+ {[%emt 0:09:41]} Kc2 {[%emt 0:00:30]} 55. Nd2 {[%emt 0:00:02]} Nd6 {[%emt 0:00:30]} 56. Ke2 {[%emt 0:01:00]} h5 {[%emt 0:01:30]} 57. f5 {[%emt 0:00:22]} Nxf5 {[%emt 0:01:30]} 58. gxf5 {[%emt 0:01:06]} gxf5 {[%emt 0:00:30]} 59. Nc4 {[%emt 0:00:00]} b1=Q {[%emt 0:00:30]} 60. Na3+ {[%emt 0:00:09]} Kc1 {[%emt 0:00:30]} 61. Nxb1 {[%emt 0:00:30]} Kxb1 {[%emt 0:00:00]} 62. Kf3 {[%emt 0:00:00]} Kc2 {[%emt 0:00:00]} 63. Kf4 {[%emt 0:00:00]} h4 {[%emt 0:00:00]} 0-1

[Event "Turkish Super League 2019"]
[Site "Konya"]
[Date "2019.07.23"]
[Round "7"]
[White "Zeydan, Salih"]
[Black "Aydin, Hakan Arda"]
[Result "0-1"]
[ECO "C84"]
[WhiteElo "2101"]
[BlackElo "1956"]
[Annotator "NA"]
[PlyCount "102"]
[EventDate "2019.07.17"]
[EventType "team-tourn"]
[EventCountry "TUR"]
[SourceTitle "playchess.com"]
[Source "ChessBase"]
[SourceQuality "1"]
[TimeControl "40/5400+30:1800+30"]

1. e4 e5 2. Nf3 Nc6 3. Bb5 a6 4. Ba4 Nf6 5. O-O Be7 6. d3 b5 7. Bb3 d6 8. a3 O-O 9. Nc3 Bg4 10. Be3 Nd4 11. Bxd4 exd4 12. Nd5 c5 13. h3 Bd7 14. Nxe7+ Qxe7 15. Re1 Bc6 16. e5 dxe5 17. Nxe5 Qd6 18. Qd2 Rae8 19. Qg5 h6 20. Qf5 Bd5 21. Bxd5 Qxd5 22. Qf4 Nh5 23. Qe4 Qxe4 24. Rxe4 Re7 25. Rae1 Rfe8 26. Nc6 Rxe4 27. Rxe4 Rxe4 28. dxe4 Nf4 29. b4 d3 30. cxd3 Nxd3 31. bxc5 Nxc5 32. f3 Kf8 33. Kf2 Ke8 34. Ke3 Kd7 35. Nd4 Ne6 {[%emt 1:34:33]} 36. Nb3 {[%emt 1:39:37]} Kc6 {[%emt 0:00:30]} 37. f4 {[%emt 0:00:30]} b4 {[%emt 0:03:36]} 38. axb4 {[%emt 0:01:58]} Kb5 {[%emt 0:00:08]} 39. f5 {[%emt 0:04:01]} Nc7 {[%emt 0:00:50]} 40. Nd4+ {[%emt 0:00:00]} Kxb4 {[%emt 0:00:00]} 41. e5 {[%emt 0:08:24]} Kc5 {[%emt 0:09:53]} 42. Ke4 {[%emt 0:02:30]} a5 {[%emt 0:00:30]} 43. g4 {[%emt 0:19:49]} a4 {[%emt 0:01:30]} 44. h4 {[%emt 0:01:55]} a3 {[%emt 0:02:30]} 45. g5 {[%emt 0:00:37]} hxg5 {[%emt 0:00:30]} 46. hxg5 {[%emt 0:02:34]} Kc4 {[%emt 0:01:30]} 47. f6 {[%emt 0:00:44]} g6 {[%emt 0:03:30]} 48. e6 {[%emt 0:00:51]} Nxe6 {[%emt 0:00:00]} 49. Nxe6 {[%emt 0:00:48]} a2 {[%emt 0:00:00]} 50. Nd8 {[%emt 0:00:18]} a1=Q {[%emt 0:00:30]} 51. Nxf7 {[%emt 0:00:00]} Qd4+ {[%emt 0:00:00]} 0-1

[Event "Turkish Super League 2019"]
[Site "Konya"]
[Date "2019.07.23"]
[Round "7"]
[White "Tezcan, Emre"]
[Black "Can, Isik"]
[Result "1-0"]
[ECO "E10"]
[WhiteElo "2082"]
[BlackElo "2374"]
[Annotator "NA"]
[PlyCount "69"]
[EventDate "2019.07.17"]
[EventType "team-tourn"]
[EventCountry "TUR"]
[SourceTitle "playchess.com"]
[Source "ChessBase"]
[SourceQuality "1"]
[TimeControl "40/5400+30:1800+30"]

1. d4 Nf6 2. c4 e6 3. Nf3 c5 4. d5 b5 5. dxe6 fxe6 6. cxb5 d5 7. g3 Be7 8. Bg2 a6 9. bxa6 O-O 10. O-O Nc6 11. b3 e5 12. Bb2 e4 13. Ne5 Nxe5 14. Bxe5 Rxa6 15. Nc3 Bb7 16. Qc2 Qe8 17. Bxf6 Bxf6 18. Rad1 Qa8 19. Rd2 Bg5 20. e3 Bf6 21. Na4 Rc8 22. Nxc5 Be7 23. b4 Bxc5 24. bxc5 Ra5 25. Rc1 Qa7 26. Qb2 Raxc5 27. Rxc5 Rxc5 {[%emt 1:41:13]} 28. Bxe4 {[%emt 1:32:33]} Bc6 {[%emt 0:00:30]} 29. Rc2 {[%emt 0:07:23]} Rxc2 {[%emt 0:01:08]} 30. Qxc2 {[%emt 0:01:11]} Qb7 {[%emt 0:01:18]} 31. Bxh7+ {[%emt 0:00:41]} Kh8 {[%emt 0:00:00]} 32. Bg6 {[%emt 0:00:36]} Bd7 {[%emt 0:00:20]} 33. Qc5 {[%emt 0:00:43]} Be6 {[%emt 0:00:14]} 34. Qf8+ {[%emt 0:00:41]} Bg8 {[%emt 0:00:01]} 35. Qf5 {[%emt 0:00:02]} 1-0

[Event "Turkish Super League 2019"]
[Site "Konya"]
[Date "2019.07.23"]
[Round "7"]
[White "Dolgun, Can"]
[Black "Ozen, Bahadir"]
[Result "0-1"]
[ECO "C50"]
[WhiteElo "2064"]
[BlackElo "2366"]
[Annotator "NA"]
[PlyCount "90"]
[EventDate "2019.07.17"]
[EventType "team-tourn"]
[EventCountry "TUR"]
[SourceTitle "playchess.com"]
[Source "ChessBase"]
[SourceQuality "1"]
[TimeControl "40/5400+30:1800+30"]

1. e4 e5 2. Nf3 Nc6 3. Bc4 Bc5 4. Nc3 Nf6 5. d3 h6 6. Be3 Bxe3 7. fxe3 d6 8. Qe2 O-O 9. O-O-O Be6 10. h3 d5 11. exd5 Nxd5 12. Bxd5 Bxd5 13. d4 Bxf3 14. Qxf3 exd4 15. exd4 Nxd4 16. Qxb7 c5 17. Rhe1 Qg5+ 18. Kb1 Rab8 19. Qd5 Rxb2+ 20. Kxb2 Rb8+ 21. Ka3 Nxc2+ 22. Ka4 Qf6 23. Qd6 Qxd6 24. Rxd6 Nxe1 25. Rd7 Nxg2 26. Rxa7 Nf4 27. Rc7 Nxh3 28. Rxc5 g5 29. Nb5 Nf4 30. Nd6 Rd8 31. Nf5 Ne6 32. Rc2 h5 33. Rf2 h4 34. Kb4 Nf4 35. Kc4 Ra8 36. Kb5 Nd5 37. Kc4 Ra5 {[%emt 1:32:34]} 38. Nh6+ {[%emt 1:42:12]} Kg7 {[%emt 0:00:30]} 39. Nxf7 {[%emt 0:00:30]} g4 {[%emt 0:00:02]} 40. Nd6 {[%emt 0:00:00]} g3 {[%emt 0:00:00]} 41. Re2 {[%emt 0:12:48]} Nf4 {[%emt 0:13:24]} 42. Rb2 {[%emt 0:02:30]} g2 {[%emt 0:01:30]} 43. Rb1 {[%emt 0:00:30]} h3 {[%emt 0:00:30]} 44. Rb7+ {[%emt 0:00:30]} Kg6 {[%emt 0:00:30]} 45. Rb8 {[%emt 0:00:00]} h2 {[%emt 0:00:30]} 0-1

[Event "Turkish Super League 2019"]
[Site "Konya"]
[Date "2019.07.24"]
[Round "8"]
[White "Romanov, Evgeny"]
[Black "Visakh N R"]
[Result "1-0"]
[ECO "A13"]
[WhiteElo "2582"]
[BlackElo "2526"]
[Annotator "ChessBase"]
[PlyCount "53"]
[EventDate "2019.07.17"]
[EventType "team-tourn"]
[EventCountry "TUR"]
[SourceTitle "playchess.com"]
[Source "ChessBase"]
[SourceQuality "1"]
[TimeControl "40/5400+30:1800+30"]

1. c4 e6 2. g3 d5 3. Bg2 Nf6 4. Nf3 dxc4 5. Qa4+ c6 6. Qxc4 b5 7. Qb3 Bb7 8. O-O a6 9. a4 Nbd7 10. d4 Qb6 11. Rd1 Be7 12. Nc3 O-O 13. Bg5 h6 14. Bxf6 Nxf6 15. Ne5 c5 16. d5 exd5 17. Nxd5 Nxd5 18. Nd7 Qe6 19. Nxf8 Rxf8 20. Bxd5 Bxd5 21. Qxd5 Qxe2 22. Re1 Qxb2 23. Ra2 Qf6 24. axb5 axb5 25. Qd7 Bd6 26. Ra6 Qc3 27. Re3 1-0

[Event "Turkish Super League 2019"]
[Site "Konya"]
[Date "2019.07.24"]
[Round "8"]
[White "Mchedlishvili, Mikheil"]
[Black "Can, Emre"]
[Result "1/2-1/2"]
[ECO "A65"]
[WhiteElo "2571"]
[BlackElo "2595"]
[Annotator "ChessBase"]
[PlyCount "34"]
[EventDate "2019.07.17"]
[EventType "team-tourn"]
[EventCountry "TUR"]
[SourceTitle "playchess.com"]
[Source "ChessBase"]
[SourceQuality "1"]
[TimeControl "40/5400+30:1800+30"]

1. d4 Nf6 2. c4 c5 3. d5 e6 4. Nc3 exd5 5. cxd5 d6 6. e4 g6 7. Nge2 Bg7 8. Ng3 O-O 9. Be2 a6 10. a4 Nbd7 11. O-O Re8 12. Bg5 h6 13. Be3 h5 14. Bg5 Qa5 15. f4 Qb4 16. Qc2 Nh7 17. Bh4 c4 1/2-1/2

[Event "Turkish Super League 2019"]
[Site "Konya"]
[Date "2019.07.24"]
[Round "8"]
[White "Atalik, Ekaterina"]
[Black "Injac, Teodora"]
[Result "1-0"]
[ECO "A49"]
[WhiteElo "2459"]
[BlackElo "2305"]
[Annotator "ChessBase"]
[PlyCount "27"]
[EventDate "2019.07.17"]
[EventType "team-tourn"]
[EventCountry "TUR"]
[SourceTitle "playchess.com"]
[Source "ChessBase"]
[SourceQuality "1"]
[TimeControl "40/5400+30:1800+30"]

1. Nf3 Nf6 2. b3 g6 3. Bb2 Bg7 4. g3 O-O 5. Bg2 d6 6. d4 a5 7. O-O a4 8. c4 Nc6 9. d5 Na5 10. Nbd2 c5 11. e4 a3 12. Bc3 b5 13. cxb5 Bd7 14. Re1 1-0

[Event "Turkish Super League 2019"]
[Site "Konya"]
[Date "2019.07.24"]
[Round "8"]
[White "Haznedaroglu, Kivanc"]
[Black "Ertan, Can"]
[Result "0-1"]
[ECO "A23"]
[WhiteElo "2448"]
[BlackElo "2396"]
[Annotator "NA"]
[PlyCount "108"]
[EventDate "2019.07.17"]
[EventType "team-tourn"]
[EventCountry "TUR"]
[SourceTitle "playchess.com"]
[Source "ChessBase"]
[SourceQuality "1"]
[TimeControl "40/5400+30:1800+30"]

1. c4 e5 2. Nc3 Nf6 3. g3 Bc5 4. Bg2 c6 5. d3 d5 6. cxd5 Nxd5 7. Nf3 Nd7 8. O-O N5f6 9. Rb1 Qe7 10. a3 a5 11. Bg5 h6 12. Bd2 O-O 13. Nh4 Rd8 14. Nf5 {[%emt 1:06:00]} Qe6 {[%emt 1:21:26]} 15. Bh3 {[%emt 0:00:30]} Kh8 {[%emt 0:00:30]} 16. b4 {[%emt 0:00:30]} Bd4 {[%emt 0:00:30]} 17. Nxh6 {[%emt 0:00:30]} Qxh3 {[%emt 0:00:30]} 18. Nxf7+ {[%emt 0:00:30]} Kg8 {[%emt 0:00:30]} 19. Qb3 {[%emt 0:00:30]} Kf8 {[%emt 0:00:30]} 20. Ng5 {[%emt 0:00:30]} Qh5 {[%emt 0:00:30]} 21. Ne6+ {[%emt 0:00:30]} Ke7 {[%emt 0:00:30]} 22. Nxg7 {[%emt 0:00:30]} Qh3 {[%emt 0:00:30]} 23. Bg5 {[%emt 0:00:30]} Rh8 {[%emt 0:00:30]} 24. Bh4 {[%emt 0:00:30]} Qg4 {[%emt 0:00:30]} 25. Kh1 {[%emt 0:00:30]} Qxg7 {[%emt 0:00:30]} 26. Ne4 {[%emt 0:00:30]} Rxh4 {[%emt 0:00:30]} 27. gxh4 {[%emt 0:00:30]} Nxe4 {[%emt 0:00:30]} 28. dxe4 {[%emt 0:00:30]} Nf6 {[%emt 0:00:30]} 29. e3 {[%emt 0:00:30]} Be6 {[%emt 0:00:30]} 30. Qc2 {[%emt 0:00:30]} Rg8 {[%emt 0:00:30]} 31. Rg1 {[%emt 0:00:30]} Bg4 {[%emt 0:00:30]} 32. Rg3 {[%emt 0:00:30]} Bf3+ {[%emt 0:00:30]} 33. Kg1 {[%emt 0:00:30]} Bxe4 {[%emt 0:00:30]} 34. Qc1 {[%emt 0:00:30]} Qh7 {[%emt 0:00:30]} 35. exd4 {[%emt 0:00:30]} Rxg3+ {[%emt 0:00:30]} 36. hxg3 {[%emt 0:00:30]} Bxb1 {[%emt 0:00:30]} 37. Qc5+ {[%emt 0:00:30]} Ke8 {[%emt 0:00:30]} 38. dxe5 {[%emt 0:00:30]} Nd7 {[%emt 0:00:30]} 39. Qc4 {[%emt 0:00:30]} Nxe5 {[%emt 0:00:30]} 40. Qe6+ {[%emt 0:00:30]} Qe7 {[%emt 0:00:30]} 41. Qg8+ {[%emt 0:30:30]} Kd7 {[%emt 0:00:04]} 42. Qb8 {[%emt 0:00:00]} axb4 {[%emt 0:03:30]} 43. Qxb7+ {[%emt 0:00:00]} Ke6 {[%emt 0:00:30]} 44. Qc8+ {[%emt 0:00:00]} Kf7 {[%emt 0:00:00]} 45. axb4 {[%emt 0:00:00]} Qxb4 {[%emt 0:00:00]} 46. Qc7+ {[%emt 0:00:00]} Qe7 {[%emt 0:00:30]} 47. Qa5 {[%emt 0:00:00]} Be4 {[%emt 0:00:30]} 48. f4 {[%emt 0:00:00]} Nf3+ {[%emt 0:00:30]} 49. Kf2 {[%emt 0:00:00]} Bd5 {[%emt 0:00:30]} 50. h5 {[%emt 0:00:00]} Qb7 {[%emt 0:00:30]} 51. Qc3 {[%emt 0:00:00]} Qb6+ {[%emt 0:06:30]} 52. Ke2 {[%emt 0:00:00]} Ng1+ {[%emt 0:00:30]} 53. Ke1 {[%emt 0:00:00]} Qb1+ {[%emt 0:00:30]} 54. Kd2 {[%emt 0:00:00]} Qa2+ {[%emt 0:00:00]} 0-1